Cogmind - Beta 13 @@@ ROGUE MODE // 2024.06.09 @ 12:47:42 Player: Sionnis Result: Destroyed by A9-U9U(R) with Subdweller Machine Gun Performance ------------- Evolutions (0) 0 Regions Visited (3) 600 Robots Destroyed (28) 140 Value Destroyed (488) 488 Prototype IDs (1) 20 Alien Tech Used (0) 0 Bonus (0) 0 TOTAL SCORE: 1248 Bonus ------- None Cogmind --------- Core Integrity 0/250 Matter 187/300 Energy 250/250 System Corruption 0% Temperature Cool (0) Movement Treading (160) Location -10/Subcaves Parts ------- > --- POWER (1) -------- Ion Engine > --- PROPULSION (2) --- Light Treads Light Treads > --- UTILITY (2) ------ Large Storage Unit Core Shielding > --- WEAPON (2) ------- Subdweller Beam Cannon Shotgun > --- INVENTORY (15) --- Light Treads Light Treads Light Treads Heat Sink Signal Interpreter Targeting Computer Shotgun Shotgun Shotgun Shotgun Shotgun Subdweller Shrapnel Launcher Makeshift Hammer Peak State ------------ > --- POWER ------------ (None) > --- PROPULSION ------- Light Treads Light Treads > --- UTILITY ---------- Large Storage Unit Power Bank > --- WEAPON ----------- Shotgun Shotgun > --- INVENTORY -------- Ion Engine Light Treads Light Treads Light Treads Heat Sink Signal Interpreter Targeting Computer Shotgun Shotgun Shotgun Shotgun Shotgun Subdweller Shrapnel Launcher Makeshift Hammer [Rating: 18] Favorites ----------- Power Ion Engine Engine Ion Engine Propulsion Light Treads Treads Light Treads Utility Large Storage Unit Device Power Bank Storage Large Storage Unit Processor Targeting Computer Protection Core Shielding Weapon Autogun Energy Cannon Subdweller Beam Cannon Ballistic Gun Autogun Launcher Subdweller Shrapnel Launcher Special Weapon Mining Laser Build | -11 -10 -10 -10 ------- Run | Yrd Mat Min Sub Slots Evolved . | . . . . Power . | . . . . Propulsion . | . . . . Utility . | . . . . Weapon . | . . . . Parts Attached 25 | 3 7 4 11 Power 4 | 1 2 . 1 Engine 4 | 1 2 . 1 Core . | . . . . Reactor . | . . . . Propulsion 5 | 2 . . 3 Treads 5 | 2 . . 3 Leg . | . . . . Wheel . | . . . . Hover . | . . . . Flight . | . . . . Utility 6 | . 3 . 3 Device 1 | . . . 1 Storage 1 | . 1 . . Processor 1 | . 1 . . Hackware . | . . . . Protection 3 | . 1 . 2 Artifact . | . . . . Weapon 10 | . 2 4 4 Energy Gun . | . . . . Energy Cannon 1 | . . . 1 Ballistic Gun 7 | . 2 3 2 Ballistic Cannon . | . . . . Launcher 1 | . . . 1 Special Weapon 1 | . . 1 . Impact Weapon . | . . . . Slashing Weapon . | . . . . Piercing Weapon . | . . . . Special Melee Weapon . | . . . . Unidentified Prototypes 1 | . . . 1 Parts Lost 3 | . . . 3 Power 1 | . . . 1 Propulsion 1 | . . . 1 Utility . | . . . . Weapon 1 | . . . 1 Highest Loss Streak 2 | . . . 2 To Critical Strikes . | . . . . Average Slot Usage (%) 97 | . 97 100 95 Engine 12 | . 14 14 10 Treads 27 | . 28 28 27 Storage 13 | . 12 14 14 Processor 2 | . 5 . . Protection 10 | . 7 14 14 Energy Cannon 1 | . . . 3 Ballistic Gun 25 | . 27 26 21 Naked Turns . | . . . . Heaviest Build 37 | 3 32 32 37 Greatest Support 40 | 40 40 40 40 Greatest Overweight (x) 1 | . . . 1 Average Overweight (x) . | . . . . Largest Inventory Capacity 15 | 5 15 15 15 Average Capacity 14 | 5 13 15 15 Most Carried 15 | 1 15 15 14 Average Carried 11 | . 11 13 12 Final Capacity 15 | 5 15 15 15 Final Carried 15 | 1 15 12 13 Class Distribution -------------------- 100% | Mutant Dominant Class ---------------- Mutant | -10/Materials Mutant | -10/Mines Mutant | -10/Subcaves Resources | -11 -10 -10 -10 ----------- Run | Yrd Mat Min Sub Matter Collected 1150 | 179 451 252 268 Remotely . | . . . . Salvage Created 823 | . 449 169 205 Parts 65 | . 43 7 15 Haulers Intercepted 1 | . 1 . . Recyclers Shooed 1 | . 1 . . Parts Field Recycled . | . . . . Retrieved Matter . | . . . . Parts Self-Destructed 8 | . . . 8 Prevented . | . . . . Kills | -11 -10 -10 -10 ------- Run | Yrd Mat Min Sub Combat Hostiles Destroyed 29 | . 9 14 6 Guns 27 | . 9 14 4 Cannons 1 | . . . 1 AOE 1 | . . . 1 Classes Destroyed 13 | . 9 1 3 Worker 2 | . 2 . . Builder 2 | . 2 . . Tunneler 1 | . 1 . . Hauler 1 | . 1 . . Recycler 1 | . 1 . . Operator 1 | . 1 . . Watcher 2 | . 2 . . Swarmer 10 | . 7 3 . Grunt 2 | . 2 . . Sentry 1 | . . . 1 Cobbler 1 | . . . 1 Subdweller 5 | . . . 5 Assembled 11 | . . 11 . Best Kill Streak 6 | . 4 6 2 Combat Bots Only 6 | . 3 6 2 Max Kills in Single Turn 2 | . 1 2 1 Gunslinging . | . . . . Exploded 1 | . . . 1 Melee . | . . . . Uniques/NPCs Destroyed . | . . . . Combat | -11 -10 -10 -10 -------- Run | Yrd Mat Min Sub Hostile Shots Fired 105 | . 42 35 28 Missed 28 | . 13 8 7 Damage Taken 1167 | . 255 400 512 Core 258 | . 44 84 130 Absorbed by Shields . | . . . . Redirected to Shielding 46 | . 2 18 26 Core Remaining (%) 100 | 100 . . . Volleys Fired 99 | . 43 29 27 Largest 2 | . 2 2 2 Hottest 103 | . 46 100 103 Shots Fired 193 | . 86 55 52 Gun 182 | . 86 52 44 Cannon 3 | . . . 3 Launcher 5 | . . . 5 Special 3 | . . 3 . Kinetic 187 | . 86 52 49 Thermal 6 | . . 3 3 Explosive . | . . . . Electromagnetic . | . . . . Robot Hit Streak 15 | . 8 8 15 Robot Miss Streak 6 | . 6 6 3 Penetration Max . | . . . . Secondary Targets 5 | . 2 2 1 Max Gunslinging Chain 1 | . 1 1 1 Shots Hit Robots 131 | . 50 33 48 Core Hits 64 | . 21 24 19 Critical Kills . | . . . . Critical Parts Destroyed 1 | . . 1 . Critical Strikes 1 | . . 1 . Destroy 1 | . . 1 . Melee Attacks . | . . . . Impact . | . . . . Slashing . | . . . . Piercing . | . . . . Sneak Attacks . | . . . . Combat Hostiles . | . . . . Follow-up Attacks . | . . . . Damage Inflicted 2307 | . 798 499 1010 Guns 1949 | . 798 499 652 Cannons 78 | . . . 78 Explosions 280 | . . . 280 Melee . | . . . . Ramming . | . . . . Kinetic 2229 | . 798 499 932 Thermal 78 | . . . 78 Explosive . | . . . . Electromagnetic . | . . . . Impact . | . . . . Slashing . | . . . . Piercing . | . . . . Highest Corruption . | . . . . Average Corruption . | . . . . Corruption Purged . | . . . . Corruption Blocked . | . . . . Overload Shots . | . . . . Overflow Damage . | . . . . Projectiles . | . . . . Explosions . | . . . . Melee . | . . . . Knockbacks . | . . . . Impact . | . . . . Kinetic . | . . . . Secondary . | . . . . Self-Inflicted Damage . | . . . . Shots . | . . . . Rammed . | . . . . Targets Rammed . | . . . . Kicked . | . . . . Crushed . | . . . . Highest Temperature 44 | . 24 44 . Average Temperature 8 | . 6 13 . Received Heat Transfer 241 | . 30 100 111 Siege Activations . | . . . . Robots Corrupted . | . . . . Combat Hostiles . | . . . . Parts Fried . | . . . . Impact Corruptions . | . . . . Robots Melted . | . . . . Combat Hostiles . | . . . . Parts Melted . | . . . . Heat Transferred 111 | . . . 111 Parts Sabotaged . | . . . . Parts Stolen . | . . . . Parts Stripped . | . . . . Power Chain Reactions . | . . . . Alert | -11 -10 -10 -10 ------- Run | Yrd Mat Min Sub Peak Influence 165 | . 165 128 . Initial 28 | . . 28 . Average 68 | . 57 107 . Maximum Alert Level . | . . . . Low Security (%) 100 | 100 100 100 . Level 1 . | . . . . Level 2 . | . . . . Level 3 . | . . . . Level 4 . | . . . . Level 5 . | . . . . High Security . | . . . . Max Security . | . . . . Squads Dispatched 2 | . 2 . . Investigation . | . . . . Extermination . | . . . . Reinforcement 2 | . 2 . . Assault . | . . . . Garrison . | . . . . Intercept . | . . . . Searches Triggered . | . . . . Construction Impeded . | . . . . Haulers Reinforced . | . . . . Active Scanning Responses . | . . . . Cargo Convoy Interrupts . | . . . . Stealth | -11 -10 -10 -10 --------- Run | Yrd Mat Min Sub Distress Signals 2 | . 2 . . Communications Jammed . | . . . . Distress Signals . | . . . . Times Spotted 36 | . 17 12 7 Peak Tracking Total 4 | . 4 3 2 Tactical Retreats 1 | . 1 . . Traps | -11 -10 -10 -10 ------- Run | Yrd Mat Min Sub Traps Triggered . | . . . . Indirectly . | . . . . Trap Hack Attempts . | . . . . Triggered . | . . . . Disarmed . | . . . . Reprogrammed . | . . . . Reused . | . . . . Traps Extracted . | . . . . Installed . | . . . . Triggered . | . . . . Machines | -11 -10 -10 -10 ---------- Run | Yrd Mat Min Sub Machines Disabled 1 | . 1 . . Max in Single Turn 1 | . 1 . . Machines Repaired . | . . . . Machines Dismantled . | . . . . Machines Sabotaged . | . . . . Overloaded Fab Kills . | . . . . Hacking | -11 -10 -10 -10 --------- Run | Yrd Mat Min Sub Machines Accessed 3 | . 3 . . Terminals 3 | . 3 . . Fabricators . | . . . . Repair Stations . | . . . . Recycling Units . | . . . . Scanalyzers . | . . . . Garrison Access . | . . . . Total Hacks 12 | . 12 . . Successful 5 | . 5 . . Failed 7 | . 7 . . Catastrophic . | . . . . Database Lockouts . | . . . . Manual 13 | . 13 . . Terminals 12 | . 12 . . Fabricators . | . . . . Repair Stations . | . . . . Recycling Units . | . . . . Scanalyzers . | . . . . Garrison Access . | . . . . Terminal Hacks 4 | . 4 . . Robot Analysis 4 | . 4 . . Fabricator Hacks . | . . . . Repair Station Hacks . | . . . . Recycling Unit Hacks . | . . . . Scanalyzer . | . . . . Garrison Access Hacks . | . . . . Unauthorized Hacks 1 | . 1 . . Terminals 1 | . 1 . . Botnet 1 | . 1 . . Fabricators . | . . . . Repair Stations . | . . . . Recycling Units . | . . . . Scanalyzers . | . . . . Garrison Access . | . . . . Data Cores Recovered . | . . . . Used . | . . . . Hacking Detections 2 | . 2 . . Full Trace Events . | . . . . Feedback Events . | . . . . Feedback Blocked . | . . . . Robot Schematics Acquired . | . . . . Robots Built . | . . . . Authchips . | . . . . Time . | . . . . Total Robot Build Rating . | . . . . Part Schematics Acquired . | . . . . Parts Built . | . . . . Authchips . | . . . . Time . | . . . . Total Part Build Rating . | . . . . Parts Repaired . | . . . . Time . | . . . . Parts Recycled . | . . . . Recycled Matter . | . . . . Retrieved Matter . | . . . . Retrieved Components . | . . . . Parts Scanalyzed . | . . . . Part Schematics Acquired . | . . . . Parts Damaged . | . . . . Bothacking | -11 -10 -10 -10 ------------ Run | Yrd Mat Min Sub Used RIF Installer . | . . . . Robots Hacked . | . . . . Non-combat . | . . . . Combat . | . . . . Robot Hacks Applied . | . . . . Relay Couplers Released . | . . . . Fabnet Peak Effective % . | . . . . Robots Rewired . | . . . . Allies Hacked . | . . . . Hacks Repelled . | . . . . Allies | -11 -10 -10 -10 -------- Run | Yrd Mat Min Sub Total Allies . | . . . . Largest Group . | . . . . Highest-Rated Group . | . . . . Highest-Rated Ally . | . . . . Total Orders . | . . . . Ally Attacks . | . . . . Total Damage . | . . . . Kills . | . . . . Allies Corrupted . | . . . . Allies Melted . | . . . . Intel | -11 -10 -10 -10 ------- Run | Yrd Mat Min Sub Robot Analysis Total 4 | . 4 . . Derelict Logs Recovered 2 | . . 2 . Drone Launches . | . . . . Drone Recoveries . | . . . . Exploration | -11 -10 -10 -10 ------------- Run | Yrd Mat Min Sub Turns Passed 2245 | 59 1108 408 670 Spaces Moved 995 | 38 469 157 331 Core 6 | 6 . . . Treads 989 | 32 469 157 331 Legs . | . . . . Wheels . | . . . . Hover . | . . . . Flight . | . . . . Fastest Speed 50 | 50 160 160 160 Average Speed 159 | 142 160 160 160 Slowest Speed 240 | 160 160 160 240 Overloaded Moves . | . . . . Propulsion Burnouts . | . . . . Robots Hopped . | . . . . Cave-ins Triggered . | . . . . Exploration Rate (%) 32 | 3 55 37 34 Regions Visited 3 Branch Regions 2 Pre-discovered Areas . | . . . . Known Exits Taken . | . . . . Unknown Exits Taken 3 | 1 1 1 . Scrap Searched 2 | . . 1 1 Spaces Dug . | . . . . Terrain Destroyed 30 | . . . 30 Melee . | . . . . Projectile . | . . . . AOE 30 | . . . 30 Terrain Rammed . | . . . . Walls Destroyed . | . . . . Machines Disabled . | . . . . Actions | -11 -10 -10 -10 --------- Run | Yrd Mat Min Sub Total 1470 | 41 757 256 416 Wait 321 | . 217 63 41 Move 992 | 37 468 156 331 Hop . | . . . . Pick Up 19 | 1 17 . 1 Fast Attach 14 | 3 5 1 5 Attach 4 | . . 1 3 Detach 2 | . . . 2 Swap 7 | . 2 2 3 Drop 12 | . 5 4 3 Fire 99 | . 43 29 27 Melee . | . . . . Ram . | . . . . Kick . | . . . . Crush . | . . . . Escape Stasis . | . . . . Rewire . | . . . . Trap . | . . . . Miscellaneous . | . . . . Route ------- -11/Scrapyard -10/Materials -10/Mines -10/Subcaves (discovered 1 exit: [*Mat]) History --------- Turn | Location | Event 8 | -11/Scrapyard | Discovered new exit (range 15) 60 | -11/Scrapyard | Entered Materials 308 | -10/Materials | Build established: Mutant 339 | -10/Materials | Discovered new exit (range 9) 1168 | -10/Materials | Entered Mines 1169 | -10/Mines | Assembled infested the area 1183 | -10/Mines | Met a Derelict bent on vengeance 1312 | -10/Mines | Learned 2 Materials zone layouts 1432 | -10/Mines | Core integrity fell below 50% 1511 | -10/Mines | Learned Materials terminal intel 1571 | -10/Mines | Discovered new exit (range 3) 1576 | -10/Mines | Entered Subcaves 1882 | -10/Subcaves | Found Prototype Device 1882 | -10/Subcaves | Identified Power Bank 1883 | -10/Subcaves | Attached Power Bank, gained temporary slots: Power x3 1941 | -10/Subcaves | Core integrity fell below 20% 2190 | -10/Subcaves | Discovered new exit (range 10) 2246 | -10/Subcaves | Destroyed by A9-U9U(R) with Subdweller Machine Gun Last Messages --------------- 02041_ Acquired 14 matter. 02078_ Acquired Sub. Beam Cannon. 02143_ Subatomizers dissect the Multitool. 02155_ Y-45 Defender destroyed. 02161_ Imp. Ion Engine fries itself beyond repair. 02161_ Acquired 58 matter. 02164_ Lgt. Armor Plating fries itself beyond repair. 02165_ Lgt. Treads fries itself beyond repair. 02165_ Dropped Core Shielding. 02165_ Acquired Core Shielding. 02166_ Subatomizers dissect the Multitool. 02172_ Heat Sink fries itself beyond repair. 02190_ EXIT=FOUND 02191_ Subatomizers dissect the Multitool. 02195_ Acquired 16 matter. 02205_ Subatomizers dissect the Multitool. 02216_ Subatomizers dissect the Multitool, destroying it. Map ----- +----------------------------------------------------+ | ??????????????????????????????????????????????? | | ??????????????????????????????????????????????? | | ??????????????????????????????????????????????? | | ??????????????????????????????????????????????? | | ??????????????????????????????????????????????? | | ??????????????????????????????????????????????? | | ??????????????????????????????????????????????? | | ??????????????????????????????????????????????? | | ??????????????????????????????????????????????? | | ??????????????????????????????????????????????? | | ??????????????????????????????????????????????? | | ??????????????????????????????????????????????? | | ??????????????????????????????????????????????? | | ??????????????????????????????????????????????? | | ??????????????????????????????????????????????? | | ??????????????????????????????????????????????? | | ??????????????????????????????????????????????? | | ??????????????????????????????????????????????? | | ??????????????????????????????????????????????? | | ????????????????????#"????????????????????????? | | ????????????????????#"???###??????????????????? | | ???????????????????##""??# ##?????????????????? | | ???????????????????# R### ##????????????????? | | ?????????????????"""#"" ##???????????????? | | ???????????????????#"" #???????????????? | | ???????????????????#" @# #???????????????? | | ???????????????????##### # # ##???????????????? | | ???????????????????????##### ##???????????????? | | ?????????????????????????## ###?????????????? | | ???????????????? ##???### #?????????????? | | ??????????????? #???# #?????????????? | | ???????????????# #???#### #?????????????? | | ??????????????## ???????## #?????????????? | | ??????????????? ##??????## #?????????????? | | ???????????????# #??????# ###?????????????? | | ??????????????## #??????# #???????????????? | | ??????????????# ##??#### ##???????????????? | | ?????????????## #### #????????????????? | | ????????###?## ### #????????????????? | | ?????#### ### ## #????????????????? | | ?????# #?# #????????????????? | | ?????# #### #????????????????? | | ??##### ## ##????????????????? | | ?## ## ### | #?????????????????? | | ## ## # ### #????????????????? | | # #### ##?## ## #??????????????? | | # #???# #### ## < #??????????????? | | ##########???# #??###?# #??????????????? | | #????????????###### #???????###??????????????? | | ?????????????????? #???????????????????????? | +----------------------------------------------------+ Best States ------------- Heat Dissipation 25 Energy Generation 10 Energy Capacity 250 Matter Stores 300 Matter Capacity 300 Sight Range 16 Terrain Scan Density 10 Core Shielding 20 Evasion (%) 40 Targeting Accuracy 5 Recoil Reduction 2 Item Schematics ----------------- None Robot Schematics ------------------ None Fabricated ------------ Nothing Alien Tech Used ----------------- None Achievements -------------- None Challenges ------------ None Game ------ Seed gottagofast Manual? 1 Play Time 00:11:52 Cumulative 165.6 hours Start 2024.06.09 @ 12:36:28 End 2024.06.09 @ 12:47:42 Sessions 1 Manual Loads 0 Difficulty Rogue Special Mode None Game No. 171 Rogue 171 Adventurer 0 Explorer 0 Win Type - Total 10 Types 9/0/0/1/0/0/0/0/0 Lore% 67 Gallery% 78 Achievement% 64 Wizard Run 0 Options --------- Layout 1 ASCII 0 Keyboard 0 Movement Numpad Keybinds 0 Fullscreen 1 Font 24/Smallcaps Map View 50x35 Zoom Use 0% Tactical HUD 1 Map Filters NONE Filters NONE Steam 1 RUN: 8d5fa40e-5ed8-4c25-b3ad-c26c607afaef